fUST/lending_fUST_20260120
["ID","MTS","AMOUNT","RATE_DAILY","PERIOD"]
[402740440,1768873840461,-500.0,0.00013698,2]
[402740441,1768873840471,-500.0,0.00013698,2]
[402740444,1768873840481,-500.0,0.00013698,2]
[402740446,1768873840491,-500.0,0.00013698,2]
[402740448,1768873840500,-500.0,0.00013698,2]
[402740450,1768873840509,-500.0,0.00013698,2]
[402740452,1768873840519,-500.0,0.00013698,2]
[402740454,1768873840530,-500.0,0.00013698,2]
[402740456,1768873840542,-500.0,0.00013698,2]
[402740458,1768873840552,-500.0,0.00013698,2]
[402740460,1768873840561,-500.0,0.00013698,2]
[402740462,1768873840571,-311.98170642,0.00013698,2]
[402740464,1768873840581,-1125.71,0.00013698,2]
[402740466,1768873840591,-1125.71,0.00013698,2]
[402740468,1768873840600,-1125.71,0.00013698,2]
[402740470,1768873840611,-1125.71,0.00013698,2]
[402740472,1768873840621,-1125.71,0.00013698,2]
[402740474,1768873840631,-1125.71,0.00013698,2]
[402740476,1768873840640,-1125.71,0.00013698,2]
[402740478,1768873840650,-1125.71,0.00013698,2]
[402740480,1768873840660,-1125.71,0.00013698,2]
[402740482,1768873840671,-1125.71,0.00013698,2]
[402740484,1768873840680,-1125.71,0.00013698,2]
[402740486,1768873840690,-1125.71,0.00013698,2]
[402740488,1768873840700,-1125.71,0.00013698,2]
[402740491,1768873840709,-1125.71,0.00013698,2]
[402740493,1768873840719,-1125.71,0.00013698,2]
[402740495,1768873840728,-1125.71,0.00013698,2]
[402740497,1768873840738,-1125.71,0.00013698,2]
[402740499,1768873840747,-1125.71,0.00013698,2]
[402740501,1768873840757,-1125.71,0.00013698,2]
[402740502,1768873840766,-1125.71,0.00013698,2]
[402740504,1768873840776,-1125.71,0.00013698,2]
[402740505,1768873840785,-1125.71,0.00013698,2]
[402740508,1768873840795,-1125.71,0.00013698,2]
[402740523,1768873840938,-1125.73236579,0.00013698,2]
[402740525,1768873840951,-1295.22,0.00013698,2]
[402740527,1768873840961,-1295.22,0.00013698,2]
[402740529,1768873840970,-1295.22,0.00013698,2]
[402740531,1768873840979,-1295.22,0.00013698,2]
[402740533,1768873840988,-1295.22,0.00013698,2]
[402740535,1768873840997,-1295.22,0.00013698,2]
[402740537,1768873841007,-1295.22,0.00013698,2]
[402740539,1768873841016,-1295.22,0.00013698,2]
[402740541,1768873841026,-1295.22,0.00013698,2]
[402740543,1768873841035,-1295.22,0.00013698,2]
[402740545,1768873841044,-1295.22,0.00013698,2]
[402740547,1768873841053,-1295.22,0.00013698,2]
[402740549,1768873841062,-1295.22,0.00013698,2]
[402740551,1768873841071,-1295.22,0.00013698,2]
[402740553,1768873841081,-1295.22,0.00013698,2]
[402740555,1768873841090,-1295.22,0.00013698,2]
[402740557,1768873841099,-1295.22,0.00013698,2]
[402740559,1768873841107,-1295.22,0.00013698,2]
[402740561,1768873841116,-1295.22,0.00013698,2]
[402740562,1768873841125,-1295.22,0.00013698,2]
[402740564,1768873841134,-1295.22,0.00013698,2]
[402740566,1768873841143,-1295.22,0.00013698,2]
[402740568,1768873841152,-1295.22,0.00013698,2]
[402740570,1768873841161,-1295.27195004,0.00013698,2]
[402740572,1768873841171,-500.0,0.00013698,2]
[402740574,1768873841179,-500.0,0.00013698,2]
[402740576,1768873841188,-500.0,0.00013698,2]
[402740578,1768873841197,-500.0,0.00013698,2]
[402740580,1768873841207,-500.0,0.00013698,2]
[402740582,1768873841216,-623.47227119,0.00013698,2]
[402740584,1768873841225,-500.0,0.00013698,2]
[402740586,1768873841235,-549.7845155,0.00013698,2]
[402740588,1768873841247,-517.3835177,0.00013698,2]
[402740590,1768873841256,-500.0,0.00013698,2]
[402740592,1768873841265,-500.0,0.00013698,2]
[402740593,1768873841275,-500.0,0.00013698,2]
[402740595,1768873841284,-500.0,0.00013698,2]
[402740597,1768873841294,-500.0,0.00013698,2]
[402740599,1768873841303,-227.13490997,0.00013698,2]
[402740601,1768873841313,-507.19470404,0.00013698,2]
[402740604,1768873841323,-2917.89,0.00013698,2]
[402740605,1768873841333,-2917.89,0.00013698,2]
[402740607,1768873841342,-2917.89,0.00013698,2]
[402740609,1768873841353,-2917.89,0.00013698,2]
[402740611,1768873841362,-2917.89,0.00013698,2]
[402740613,1768873841372,-2917.89,0.00013698,2]
[402740615,1768873841382,-2917.89,0.00013698,2]
[402740617,1768873841391,-2917.89,0.00013698,2]
[402740619,1768873841401,-2917.89,0.00013698,2]
[402740621,1768873841410,-2917.89,0.00013698,2]
[402740623,1768873841424,-2917.89,0.00013698,2]
[402740625,1768873841443,-2917.89,0.00013698,2]
[402740627,1768873841455,-2917.89,0.00013698,2]
[402740629,1768873841465,-2917.89,0.00013698,2]
[402740631,1768873841475,-2917.89,0.00013698,2]
[402740633,1768873841484,-2917.89,0.00013698,2]
[402740635,1768873841499,-2917.89,0.00013698,2]
[402740637,1768873841509,-2917.89,0.00013698,2]
[402740639,1768873841518,-2917.89,0.00013698,2]
[402740641,1768873841528,-2917.89,0.00013698,2]
[402740643,1768873841541,-2917.89,0.00013698,2]
[402740645,1768873841550,-2917.89,0.00013698,2]
[402740647,1768873841559,-2917.89,0.00013698,2]
[402740649,1768873841569,-2918.02238862,0.00013698,2]
[402740651,1768873841579,-1719.21,0.00013698,2]
[402740653,1768873841588,-1719.21,0.00013698,2]
[402740655,1768873841597,-1719.21,0.00013698,2]
[402740657,1768873841606,-1719.21,0.00013698,2]
[402740659,1768873841615,-1719.21,0.00013698,2]
[402740661,1768873841624,-1719.21,0.00013698,2]
[402740663,1768873841635,-1719.21,0.00013698,2]
[402740665,1768873841643,-1719.21,0.00013698,2]
[402740667,1768873841652,-1719.21,0.00013698,2]
[402740669,1768873841663,-1719.21,0.00013698,2]
[402740671,1768873841672,-1719.21,0.00013698,2]
[402740673,1768873841682,-1719.21,0.00013698,2]
[402740675,1768873841691,-1719.21,0.00013698,2]
[402740677,1768873841701,-1719.21,0.00013698,2]
[402740679,1768873841710,-1719.21,0.00013698,2]
[402740681,1768873841719,-1719.21,0.00013698,2]
[402740683,1768873841729,-1719.21,0.00013698,2]
[402740685,1768873841739,-1719.21,0.00013698,2]
[402740687,1768873841747,-1719.21,0.00013698,2]
[402740689,1768873841761,-1719.21,0.00013698,2]
[402740691,1768873841770,-1719.21,0.00013698,2]
[402740693,1768873841779,-1719.21,0.00013698,2]
[402740695,1768873841790,-1719.21,0.00013698,2]
[402740697,1768873841800,-1719.21064892,0.00013698,2]
[402740699,1768873841810,-180.0342065,0.00013699,2]
[402740701,1768873841819,-3970.8556316,0.00013699,2]
[402740703,1768873841829,-134354.3666399,0.00013699,2]
[402740705,1768873841839,-500.0,0.00013699,2]
[402740707,1768873841857,-163.01901735,0.00013699,2]
[402740709,1768873841872,-500.0,0.00013699,2]
[402740711,1768873841882,-500.0,0.00013699,2]
[402740713,1768873841891,-500.0,0.00013699,2]
[402740715,1768873841900,-501.26293977,0.00013699,2]
[402740717,1768873841910,-500.0,0.00013699,2]
[402740719,1768873841921,-501.35700508,0.00013699,2]
[402740721,1768873841930,-500.0,0.00013699,2]
[402740723,1768873841940,-500.51565046,0.00013699,2]
[402740725,1768873841950,-500.0,0.00013699,2]
[402740727,1768873841959,-501.29149597,0.00013699,2]
[402740729,1768873841969,-500.0,0.00013699,2]
[402740731,1768873841978,-500.0,0.00013699,2]
[402740733,1768873841989,-500.0,0.00013699,2]
[402740735,1768873841998,-158.04977482,0.00013699,2]
[402740737,1768873842009,-500.0,0.00013699,2]
[402740739,1768873842018,-608.3787648,0.00013699,2]
[402740741,1768873842028,-500.0,0.00013699,2]
[402740743,1768873842037,-500.0,0.00013699,2]
[402740746,1768873842047,-501.02196996,0.00013699,2]
[402740747,1768873842057,-501.72583828,0.00013699,2]
[402740749,1768873842067,-500.0,0.00013699,2]
[402740751,1768873842076,-500.0,0.00013699,2]
[402740753,1768873842086,-500.0,0.00013699,2]
[402740757,1768873842096,-500.0,0.00013699,2]
[402740760,1768873842105,-500.3147107,0.00013699,2]
[402740763,1768873842115,-194.34876524,0.00013699,2]
[402740766,1768873842124,-172.98841011,0.00013699,2]
[402740769,1768873842133,-400.06859375,0.00013699,2]
[402740772,1768873842143,-158.04981062,0.00013699,2]
[402740775,1768873842152,-501.1992665,0.00013699,2]
[402740778,1768873842161,-506.0812071,0.00013699,2]
[402740780,1768873842171,-500.0,0.00013699,2]
[402740783,1768873842180,-536.17354172,0.00013699,2]
[402740785,1768873842190,-776.4056336,0.00013699,2]
[402740788,1768873842199,-500.0,0.00013699,2]
[402740791,1768873842208,-500.0,0.00013699,2]
[402740794,1768873842218,-500.0,0.00013699,2]
[402740796,1768873842227,-470.97944282,0.00013699,2]
[402740799,1768873842237,-242.728082,0.0001372,7]
[402740801,1768873842246,-3369.1377902,0.0001372,2]
[402740804,1768873842255,-20995.6066629,0.0001372,2]
[402740807,1768873842265,-589.7203308,0.0001372,2]
[402740809,1768873842274,-2000.0,0.0001372,2]
[402740812,1768873842283,-2000.0,0.0001372,2]
[402740815,1768873842293,-2000.0,0.0001372,2]
[402740817,1768873842302,-2000.0,0.0001372,2]
[402740820,1768873842312,-2000.0,0.0001372,2]
[402740823,1768873842321,-2000.0,0.0001372,2]
[402740825,1768873842331,-2000.0,0.0001372,2]
[402740828,1768873842341,-475.0,0.0001372,2]
[402740831,1768873842351,-475.0,0.0001372,2]
[402740834,1768873842360,-475.0,0.0001372,2]
[402740837,1768873842369,-475.0,0.0001372,2]
[402740839,1768873842378,-475.0,0.0001372,2]
[402740842,1768873842387,-475.0,0.0001372,2]
[402740845,1768873842398,-475.0,0.0001372,2]
[402740848,1768873842407,-475.0,0.0001372,2]
[402740851,1768873842418,-475.0,0.0001372,2]
[402740853,1768873842427,-475.0,0.0001372,2]
[402740856,1768873842436,-475.0,0.0001372,2]
[402740858,1768873842444,-475.0,0.0001372,2]
[402740860,1768873842454,-475.0,0.0001372,2]
[402740862,1768873842464,-475.0,0.0001372,2]
[402740863,1768873842473,-475.0,0.0001372,2]
[402740866,1768873842483,-1062117.4368201,0.0001372,2]
[402740874,1768873842564,-284.54000002,0.0001372,2]
[402740877,1768873842584,-1994.66700258,0.0001372,2]
[402740879,1768873842596,-1496.92909725,0.0001372,2]
[402740893,1768873842719,-671.77936835,0.0001372,2]
[402740895,1768873842731,-35839.49205118,0.0001372,2]
[402740897,1768873842741,-1704.00251607,0.0001372,2]
[402740899,1768873842752,-73006.01871413,0.0001372,2]
[402740901,1768873842764,-11545.40332123,0.0001372,2]
[402740975,1768873843406,-5086.66303309,0.0001372,2]
[402740977,1768873843418,-391.56629167,0.0001372,2]
[402740979,1768873843430,-7778.05196821,0.0001372,2]
[402740983,1768873843460,-32306.68186744,0.0001372,2]
[402741130,1768873846330,-15102.35952934,0.0001372,2]
[402741131,1768873846342,-291.86447543,0.0001372,2]
[402741132,1768873846383,-48573.82859732,0.0001372,2]
[402741146,1768873971465,328.08,8.751e-05,2]
[402741147,1768873971879,656.17,9.547e-05,2]
[402741148,1768874003096,3000.0,0.000126,30]
[402741149,1768874008681,3000.0,0.0001261,30]
[402741150,1768874009642,3000.0,0.0001262,30]
[402741151,1768874010069,3000.0,0.0001263,30]
[402741152,1768874010483,3000.0,0.0001264,30]
[402741153,1768874011021,3000.0,0.0001265,30]
[402741154,1768874011460,3000.0,0.0001266,30]
[402741155,1768874011855,3000.0,0.0001267,30]
[402741156,1768874012224,3000.0,0.0001268,30]
[402741157,1768874012542,3000.0,0.0001269,30]
[402741158,1768874012839,3000.0,0.000127,30]
[402741159,1768874013283,3000.0,0.0001271,30]
[402741160,1768874013691,3000.0,0.0001272,30]
[402741161,1768874014101,5619.431713,0.0001273,30]
[402741162,1768874052235,315.56,8.806e-05,2]
[402741163,1768874052548,631.11,9.606e-05,2]
[402741164,1768874147906,303.51,8.801e-05,2]
[402741165,1768874148319,607.02,9.601e-05,2]
[402741167,1768874229953,376.26,8.758e-05,2]
[402741168,1768874230404,752.52,9.555e-05,2]
[402741170,1768874281824,176.31,9.675e-05,2]
[402741173,1768874312839,361.89,8.771e-05,2]
[402741174,1768874313310,723.78,9.569e-05,2]
[402741175,1768874370622,5819.34936898,0.0001395,30]
[402741176,1768874395242,348.07,8.75e-05,2]
[402741177,1768874395662,696.15,9.546e-05,2]
[402741179,1768874479936,334.78,9.084e-05,2]
[402741181,1768874567353,330.52,9.078e-05,2]
[402741183,1768874649354,326.32,9.06e-05,2]
[402741184,1768874740724,322.16,8.649e-05,2]
[402741185,1768874741189,644.33,9.061e-05,2]
[402741186,1768874741607,966.49,9.473e-05,2]
[402741187,1768874821250,330.0,8.348e-05,2]
[402741188,1768874821666,660.0,8.745e-05,2]
[402741189,1768874822103,990.0,9.143e-05,2]
[402741190,1768874822536,1320.0,9.54e-05,2]
[402741191,1768874881148,195.73,3.436e-05,2]
[402741192,1768874881476,195.72,3.436e-05,2]
[402741197,1768874902717,288.0,8.346e-05,2]
[402741198,1768874903159,576.0,8.744e-05,2]
[402741199,1768874903599,864.0,9.141e-05,2]
[402741200,1768874904058,1152.0,9.539e-05,2]
[402741202,1768874925975,1110.15,0.00027397,120]
[402741203,1768874983909,277.3,8.307e-05,2]
[402741204,1768874984342,554.59,8.702e-05,2]
[402741205,1768874984739,831.89,9.098e-05,2]
[402741206,1768874985144,1109.18,9.494e-05,2]
[402741235,1768875032273,-1331.21619743,9.889e-05,2]
[402741238,1768875032325,-55.26380257,9.889e-05,2]
[402741240,1768875032335,-300.0,9.898e-05,2]
[402741242,1768875032344,-33.5149432,9.898e-05,2]
[402741244,1768875032355,-151.4850568,9.898e-05,2]
[402741246,1768875032364,-300.0,9.898e-05,2]
[402741248,1768875032373,-198.54222109,9.898e-05,2]
[402741251,1768875032393,-101.45777891,9.898e-05,2]
[402741253,1768875032402,-403.12455014,9.898e-05,2]
[402741256,1768875032415,-796.87544986,9.898e-05,2]
[402741258,1768875032425,-500.0,9.899e-05,2]
[402741260,1768875032434,-500.0,9.899e-05,2]
[402741262,1768875032443,-500.0,9.899e-05,2]
[402741264,1768875032452,-500.0,9.899e-05,2]
[402741266,1768875032461,-500.0,9.899e-05,2]
[402741268,1768875032471,-500.0,9.899e-05,2]
[402741271,1768875032480,-500.0,9.899e-05,2]
[402741273,1768875032489,-572.88432325,9.899e-05,2]
[402741275,1768875032498,-319.2866928,9.899e-05,2]
[402741277,1768875032507,-500.0,9.899e-05,2]
[402741279,1768875032517,-500.0,9.899e-05,2]
[402741281,1768875032527,-500.0,9.899e-05,2]
[402741283,1768875032536,-579.24145943,9.899e-05,2]
[402741285,1768875032545,-500.0,9.899e-05,2]
[402741287,1768875032554,-490.8969843,9.899e-05,2]
[402741288,1768875032563,-392.55577249,9.9e-05,2]
[402741289,1768875032572,-13565.0,9.9e-05,2]
[402741290,1768875032582,-1663.77,0.00010285,2]
[402741291,1768875032591,-1941.07,0.0001068,2]
[402741292,1768875032600,-420.0,0.00010888,2]
[402741293,1768875032609,-420.0,0.00010888,2]
[402741294,1768875032619,-420.0,0.00010888,2]
[402741295,1768875032629,-1680.0,0.00010888,2]
[402741296,1768875032638,-1369.6375247,0.0001103,2]
[402741313,1768875038457,-277.845737,9.899e-05,2]
[402741315,1768875038470,-8581.16445126,9.899e-05,2]
[402741317,1768875038480,-998630.3624753,0.0001103,2]
[402741319,1768875038491,-2218.36,0.00011076,2]
[402741321,1768875038501,-1000.0,0.000112,2]
[402741323,1768875038511,-2495.66,0.00011471,2]
[402741325,1768875038521,-1000.0,0.000115,3]
[402741327,1768875038531,-310.57114226,0.0001153,2]
[402741329,1768875038541,-189.50688871,0.0001153,2]
[402741330,1768875038550,-558.53050172,0.00011564,2]
[402741332,1768875038561,-294.37798719,0.0001168,2]
[402741334,1768875038571,-513.20597556,0.00011726,2]
[402741336,1768875038581,-2772.95,0.00011867,2]
[402741338,1768875038591,-213.17,0.00011882,2]
[402741340,1768875038601,-463.21581154,0.000119,2]
[402741342,1768875038610,-1368.0,0.00011901,2]
[402741344,1768875038620,-417.313,0.00011901,2]
[402741346,1768875038630,-795.927,0.0001194,2]
[402741348,1768875038640,-199.667,0.0001194,2]
[402741350,1768875038649,-500.0,0.00011977,2]
[402741352,1768875038659,-583.0,0.00011977,2]
[402741354,1768875038669,-587.0,0.00011977,2]
[402741355,1768875038680,-587.0,0.00011977,2]
[402741357,1768875038690,-2351.0,0.00011977,2]
[402741360,1768875038702,-159.62665952,0.00012078,2]
[402741361,1768875038712,-319.0,0.00012083,2]
[402741364,1768875038721,-500.0,0.00012122,2]
[402741365,1768875038731,-206.71,0.00012122,2]
[402741367,1768875038742,-206.71,0.00012122,2]
[402741370,1768875038752,-305.0799874,0.00012138,2]
[402741371,1768875038762,-1957.856,0.00012193,2]
[402741373,1768875038772,-2150.738,0.00012193,2]
[402741375,1768875038789,-151.0,0.000122,2]
[402741377,1768875038810,-151.0,0.000122,2]
[402741379,1768875038832,-151.0,0.000122,2]
[402741381,1768875038854,-151.0,0.000122,2]
[402741384,1768875038875,-151.0,0.000122,2]
[402741386,1768875038896,-151.0,0.000122,2]
[402741387,1768875038918,-151.0,0.000122,2]
[402741389,1768875038929,-151.0,0.000122,2]
[402741391,1768875038944,-151.0,0.000122,2]
[402741393,1768875038961,-151.0,0.000122,2]
[402741395,1768875038971,-151.0,0.000122,2]
[402741397,1768875038980,-151.0,0.000122,2]
[402741399,1768875038991,-151.0,0.000122,2]
[402741401,1768875039002,-151.0,0.000122,2]
[402741403,1768875039012,-151.0,0.000122,2]
[402741405,1768875039022,-151.0,0.000122,2]
[402741406,1768875039032,-151.0,0.000122,2]
[402741408,1768875039042,-151.0,0.000122,2]
[402741411,1768875039053,-151.0,0.000122,2]
[402741412,1768875039065,-173.86513209,0.00012222,2]
[402741414,1768875039075,-162.380719,0.00012222,2]
[402741416,1768875039085,-163.42153372,0.00012222,2]
[402741418,1768875039095,-162.380719,0.00012222,2]
[402741420,1768875039106,-168.3888056,0.00012222,2]
[402741422,1768875039116,-174.61919141,0.00012222,2]
[402741424,1768875039125,-181.08010149,0.00012222,2]
[402741426,1768875039134,-187.78006525,0.00012222,2]
[402741428,1768875039143,-445.202766,0.00012222,2]
[402741430,1768875039153,-194.72792766,0.00012222,2]
[402741432,1768875039162,-201.93286099,0.00012222,2]
[402741434,1768875039171,-209.40437684,0.00012222,2]
[402741436,1768875039181,-217.15233878,0.00012222,2]
[402741438,1768875039190,-225.18697532,0.00012222,2]
[402741439,1768875039199,-233.51889341,0.00012222,2]
[402741441,1768875039209,-242.15909246,0.00012222,2]
[402741443,1768875039219,-251.11897888,0.00012222,2]
[402741445,1768875039228,-260.4103811,0.00012222,2]
[402741447,1768875039237,-270.0455652,0.00012222,2]
[402741449,1768875039247,-280.03725112,0.00012222,2]
[402741452,1768875039257,-290.39862941,0.00012222,2]
[402741453,1768875039266,-301.1433787,0.00012222,2]
[402741455,1768875039276,-2030.296672,0.00012248,2]
[402741458,1768875039286,-500.0,0.00012251,2]
[402741459,1768875039295,-2105.41764886,0.00012303,2]
[402741461,1768875039304,-5338.89,0.00012329,2]
[402741463,1768875039314,-4616.8,0.00012329,2]
[402741465,1768875039324,-3847.34,0.00012329,2]
[402741467,1768875039333,-3206.11,0.00012329,2]
[402741469,1768875039342,-2671.76,0.00012329,2]
[402741471,1768875039351,-2226.47,0.00012329,2]
[402741473,1768875039360,-1855.39,0.00012329,2]
[402741475,1768875039369,-1546.16,0.00012329,2]
[402741477,1768875039378,-1288.47,0.00012329,2]
[402741479,1768875039387,-1073.72,0.00012329,2]
[402741481,1768875039396,-894.77,0.00012329,2]
[402741483,1768875039406,-745.64,0.00012329,2]
[402741485,1768875039415,-621.37,0.00012329,2]
[402741487,1768875039424,-517.8,0.00012329,2]
[402741489,1768875039433,-431.5,0.00012329,2]
[402741491,1768875039442,-359.59,0.00012329,2]
[402741493,1768875039453,-299.66,0.00012329,2]
[402741495,1768875039462,-249.71,0.00012329,2]
[402741497,1768875039473,-208.09,0.00012329,2]
[402741499,1768875039482,-173.41,0.00012329,2]
[402741501,1768875039491,-867.09,0.00012329,2]
[402741503,1768875039501,-500.0,0.00012329,2]
[402741505,1768875039511,-500.0,0.00012329,2]
[402741506,1768875039520,-500.0,0.00012329,2]
[402741508,1768875039530,-500.0,0.00012329,2]
[402741510,1768875039539,-500.0,0.00012329,2]
[402741512,1768875039548,-500.0,0.00012329,2]
[402741514,1768875039557,-500.0,0.00012329,2]
[402741516,1768875039566,-500.0,0.00012329,2]
[402741518,1768875039576,-500.0,0.00012329,2]
[402741520,1768875039586,-500.0,0.00012329,2]
[402741522,1768875039595,-500.0,0.00012329,2]
[402741524,1768875039603,-500.0,0.00012329,2]
[402741526,1768875039613,-500.0,0.00012329,2]
[402741528,1768875039622,-500.0,0.00012329,2]
[402741530,1768875039632,-500.0,0.00012329,2]
[402741532,1768875039641,-500.0,0.00012329,2]
[402741534,1768875039652,-500.0,0.00012329,2]
[402741536,1768875039661,-500.0,0.00012329,2]
[402741538,1768875039671,-500.0,0.00012329,2]
[402741540,1768875039682,-500.0,0.00012329,2]
[402741542,1768875039692,-500.0,0.00012329,2]
[402741544,1768875039702,-500.0,0.00012329,2]
[402741545,1768875039711,-500.0,0.00012329,2]
[402741547,1768875039721,-500.0,0.00012329,2]
[402741549,1768875039730,-500.0,0.00012329,2]
[402741551,1768875039739,-500.0,0.00012329,2]
[402741553,1768875039748,-500.0,0.00012329,2]
[402741554,1768875039758,-500.0,0.00012329,2]
[402741555,1768875039768,-500.0,0.00012329,2]
[402741556,1768875039778,-500.0,0.00012329,2]
[402741557,1768875039788,-500.0,0.00012329,2]
[402741558,1768875039797,-500.0,0.00012329,2]
[402741559,1768875039807,-500.0,0.00012329,2]
[402741560,1768875039816,-500.0,0.00012329,2]
[402741561,1768875039827,-500.0,0.00012329,2]
[402741562,1768875039836,-525.54083359,0.00012329,2]
[402741563,1768875039846,-500.0,0.00012329,2]
[402741564,1768875039855,-500.0,0.00012329,2]
[402741565,1768875039864,-500.0,0.00012329,2]
[402741566,1768875039874,-500.0,0.00012329,2]
[402741567,1768875039883,-500.0,0.00012329,2]
[402741568,1768875039892,-500.0,0.00012329,2]
[402741569,1768875039902,-500.0,0.00012329,2]
[402741570,1768875039911,-500.0,0.00012329,2]
[402741571,1768875039921,-500.0,0.00012329,2]
[402741572,1768875039930,-500.0,0.00012329,2]
[402741573,1768875039944,-500.0,0.00012329,2]
[402741574,1768875039955,-500.0,0.00012329,2]
[402741575,1768875039964,-500.0,0.00012329,2]
[402741576,1768875039973,-500.0,0.00012329,2]
[402741577,1768875039983,-500.0,0.00012329,2]
[402741578,1768875039993,-500.0,0.00012329,2]
[402741579,1768875040002,-500.0,0.00012329,2]
[402741580,1768875040011,-500.0,0.00012329,2]
[402741581,1768875040022,-500.0,0.00012329,2]
[402741582,1768875040031,-500.0,0.00012329,2]
[402741583,1768875040041,-500.0,0.00012329,2]
[402741584,1768875040050,-500.0,0.00012329,2]
[402741585,1768875040060,-500.0,0.00012329,2]
[402741586,1768875040069,-469.50453706,0.00012329,2]
[402741587,1768875040078,-500.0,0.00012329,2]
[402741588,1768875040087,-500.0,0.00012329,2]
[402741589,1768875040096,-500.0,0.00012329,2]
[402741590,1768875040106,-2183.31810187,0.00012358,2]
[402741591,1768875040114,-2264.10087164,0.00012413,2]
[402741592,1768875040122,-2347.87260389,0.00012468,2]
[402741593,1768875040131,-5178.66776551,0.00012495,2]
[402741594,1768875040141,-2434.74389024,0.00012523,2]
[402741595,1768875040150,-500.0,0.00012525,2]
[402741597,1768875040160,-2524.82941417,0.00012578,2]
[402741598,1768875040169,-2618.2481025,0.00012633,2]
[402741599,1768875040178,-2715.12328229,0.00012688,2]
[402741600,1768875040187,-2230.315306,0.00012741,2]
[402741601,1768875040197,-2815.58284374,0.00012743,2]
[402741602,1768875040207,-168.3888056,0.0001277,2]
[402741603,1768875040217,-461.67526834,0.0001277,2]
[402741604,1768875040226,-2919.75940895,0.00012798,2]
[402741605,1768875040237,-500.0,0.00012799,2]
[402741606,1768875040247,-1041.66666667,0.00012818,2]
[402741607,1768875040256,-3027.79050709,0.00012853,2]
[402741608,1768875040266,-729.0,0.00012893,2]
[402741609,1768875040275,-14564.37259996,0.000129,2]
[402741610,1768875040285,-3139.81875585,0.00012908,2]
[402741611,1768875040295,-3255.99204981,0.00012963,2]
[402741612,1768875040305,-472.41,0.00013,2]
[402741613,1768875040314,-3376.46375566,0.00013018,2]
[402741614,1768875040324,-500.0,0.00013045,2]
[402741615,1768875040333,-2091.62231471,0.00013073,2]
[402741616,1768875040342,-500.0,0.00013073,2]
[402741617,1768875040351,-823.0,0.00013174,2]
[402741618,1768875040361,-823.0,0.00013174,2]
[402741619,1768875040370,-3292.0,0.00013174,2]
[402741621,1768875040380,-3876.0,0.00013261,2]
[402741622,1768875040389,-548.62899052,0.00013273,2]
[402741624,1768875040399,-500.0,0.00013273,2]
[402741626,1768875040408,-501.16877104,0.00013273,2]
[402741628,1768875040417,-264.62653308,0.00013273,2]
[402741630,1768875040426,-500.0,0.00013273,2]
[402741632,1768875040435,-501.04408585,0.00013273,2]
[402741634,1768875040444,-501.14775372,0.00013273,2]
[402741636,1768875040454,-164.2137581,0.00013273,2]
[402741638,1768875040463,-505.78880887,0.00013273,2]
[402741640,1768875040472,-503.39647699,0.00013273,2]
[402741642,1768875040481,-500.0,0.00013273,2]
[402741644,1768875040490,-500.0,0.00013273,2]
[402741646,1768875040499,-165.8003176,0.00013273,2]
[402741648,1768875040508,-218.29013,0.00013273,2]
[402741650,1768875040517,-501.15703421,0.00013273,2]
[402741652,1768875040526,-501.17173594,0.00013273,2]
[402741654,1768875040537,-500.0,0.00013273,2]
[402741656,1768875040546,-501.20262158,0.00013273,2]